lending/lending_fUSD_20250508
["ID","MTS","AMOUNT","RATE_DAILY","PERIOD"]
[360258722,1746670241044,-450.0,0.00019898,2]
[360258723,1746670241055,-478.1753875,0.00019898,2]
[360258724,1746670241065,-479.61964417,0.00019898,2]
[360258725,1746670241075,-509.55791175,0.00019898,2]
[360258726,1746670241086,-483.28562292,0.00019898,2]
[360258727,1746670241095,-474.03414677,0.00019898,2]
[360258728,1746670241106,-450.0,0.00019898,2]
[360258729,1746670241116,-465.47296475,0.00019898,2]
[360258730,1746670241126,-475.91465877,0.00019898,2]
[360258731,1746670241136,-235.16732919,0.00019898,2]
[360258732,1746670241147,-504.93429322,0.00019898,2]
[360258733,1746670241157,-462.84291248,0.00019898,2]
[360258734,1746670241167,-517.70645034,0.00019898,2]
[360258735,1746670241177,-460.0840417,0.00019898,2]
[360258736,1746670241187,-464.98250608,0.00019898,2]
[360258737,1746670241197,-450.0,0.00019898,2]
[360258738,1746670241207,-450.0,0.00019898,2]
[360258739,1746670241216,-450.0,0.00019898,2]
[360258740,1746670241226,-450.0,0.00019898,2]
[360258741,1746670241235,-450.0,0.00019898,2]
[360258742,1746670241246,-461.92691329,0.00019898,2]
[360258743,1746670241255,-10534.24,0.00019898,2]
[360258744,1746670241265,-202.611081,0.00019898,2]
[360258745,1746670241275,-308.21791528,0.00019898,2]
[360258746,1746670241284,-450.0,0.00019898,2]
[360258747,1746670241293,-585.71659449,0.00019898,2]
[360258748,1746670241303,-450.0,0.00019898,2]
[360258749,1746670241312,-450.0,0.00019898,2]
[360258750,1746670241321,-450.0,0.00019898,2]
[360258751,1746670241330,-461.44293941,0.00019898,2]
[360258752,1746670241339,-296.820324,0.00019898,2]
[360258753,1746670241349,-466.87201728,0.00019898,2]
[360258754,1746670241358,-454.18035508,0.00019898,2]
[360258755,1746670241367,-450.0,0.00019898,2]
[360258756,1746670241376,-450.0,0.00019898,2]
[360258757,1746670241384,-493.59045279,0.00019898,2]
[360258758,1746670241394,-450.0,0.00019898,2]
[360258759,1746670241403,-452.71443976,0.00019898,2]
[360258760,1746670241413,-479.96713064,0.00019898,2]
[360258761,1746670241422,-450.0,0.00019898,2]
[360258762,1746670241436,-450.0,0.00019898,2]
[360258763,1746670241449,-467.79626541,0.00019898,2]
[360258764,1746670241463,-450.0,0.00019898,2]
[360258765,1746670241476,-564.42670423,0.00019898,2]
[360258766,1746670241489,-450.0,0.00019898,2]
[360258767,1746670241500,-450.0,0.00019898,2]
[360258768,1746670241510,-456.28592676,0.00019898,2]
[360258769,1746670241523,-465.58462508,0.00019898,2]
[360258770,1746670241535,-450.0,0.00019898,2]
[360258771,1746670241548,-450.0,0.00019898,2]
[360258772,1746670241560,-469.01184104,0.00019898,2]
[360258773,1746670241576,-478.17514591,0.00019898,2]
[360258774,1746670241588,-459.52996706,0.00019898,2]
[360258775,1746670241601,-598.54773485,0.00019898,2]
[360258776,1746670241613,-450.0,0.00019898,2]
[360258777,1746670241624,-470.42480854,0.00019898,2]
[360258778,1746670241637,-495.70437778,0.00019898,2]
[360258779,1746670241648,-475.95157546,0.00019898,2]
[360258780,1746670241658,-465.81851075,0.00019898,2]
[360258781,1746670241671,-450.0,0.00019898,2]
[360258782,1746670241684,-450.0,0.00019898,2]
[360258783,1746670241697,-450.0,0.00019898,2]
[360258784,1746670241709,-1043.95377767,0.00019898,2]
[360258785,1746670241721,-450.0,0.00019898,2]
[360258786,1746670241733,-726.71,0.00019898,2]
[360258787,1746670241746,-591.61891779,0.00019898,2]
[360258788,1746670241758,-450.0,0.00019898,2]
[360258789,1746670241771,-475.49930529,0.00019898,2]
[360258790,1746670241784,-450.0,0.00019898,2]
[360258791,1746670241796,-450.0,0.00019898,2]
[360258792,1746670241808,-450.0,0.00019898,2]
[360258793,1746670241820,-450.0,0.00019898,2]
[360258794,1746670241835,-450.0,0.00019898,2]
[360258795,1746670241847,-450.0,0.00019898,2]
[360258796,1746670241860,-450.0,0.00019898,2]
[360258797,1746670241872,-462.8440408,0.00019898,2]
[360258798,1746670241883,-643.27,0.00019898,2]
[360258799,1746670241896,-479.17119916,0.00019898,2]
[360258800,1746670241922,-478.00789802,0.00019898,2]
[360258801,1746670241936,-450.0,0.00019898,2]
[360258802,1746670241949,-315.19951355,0.00019898,2]
[360258803,1746670241965,-624.95,0.00019898,2]
[360258804,1746670241987,-183.25591853,0.00019898,2]
[360258805,1746670242003,-450.0,0.00019898,2]
[360258806,1746670242017,-450.0,0.00019898,2]
[360258807,1746670242033,-477.70197384,0.00019898,2]
[360258808,1746670242048,-450.0,0.00019898,2]
[360258809,1746670242063,-495.09706035,0.00019898,2]
[360258810,1746670242075,-450.0,0.00019898,2]
[360258811,1746670242087,-450.0,0.00019898,2]
[360258812,1746670242100,-464.48237236,0.00019898,2]
[360258813,1746670242112,-1092.83,0.00019898,2]
[360258814,1746670242127,-450.0,0.00019898,2]
[360258815,1746670242145,-509.49122662,0.00019898,2]
[360258816,1746670242156,-450.0,0.00019898,2]
[360258817,1746670242167,-1217.02,0.00019898,2]
[360258818,1746670242178,-450.0,0.00019898,2]
[360258819,1746670242189,-450.0,0.00019898,2]
[360258820,1746670242200,-450.0,0.00019898,2]
[360258821,1746670242212,-565.94,0.00019898,2]
[360258822,1746670242226,-450.0,0.00019898,2]
[360258823,1746670242242,-450.0,0.00019898,2]
[360258824,1746670242256,-450.0,0.00019898,2]
[360258825,1746670242267,-450.0,0.00019898,2]
[360258826,1746670242279,-450.0,0.00019898,2]
[360258827,1746670242291,-467.66549321,0.00019898,2]
[360258828,1746670242301,-514.38712642,0.00019898,2]
[360258829,1746670242318,-450.0,0.00019898,2]
[360258830,1746670242330,-450.0,0.00019898,2]
[360258831,1746670242343,-927.7,0.00019898,2]
[360258832,1746670242356,-5819.0,0.00019898,2]
[360258833,1746670242369,-450.0,0.00019898,2]
[360258834,1746670242382,-450.0,0.00019898,2]
[360258835,1746670242395,-450.0,0.00019898,2]
[360258836,1746670242408,-450.0,0.00019898,2]
[360258837,1746670242421,-450.0,0.00019898,2]
[360258838,1746670242445,-193.60110548,0.00019898,2]
[360258839,1746670242459,-450.0,0.00019898,2]
[360258840,1746670242476,-450.0,0.00019898,2]
[360258841,1746670242490,-943.87,0.00019898,2]
[360258842,1746670242503,-450.0,0.00019898,2]
[360258843,1746670242516,-450.0,0.00019898,2]
[360258844,1746670242531,-450.0,0.00019898,2]
[360258845,1746670242545,-450.0,0.00019898,2]
[360258846,1746670242560,-200.83364946,0.00019899,2]
[360258847,1746670242573,-450.0,0.00019899,2]
[360258848,1746670242585,-928.34,0.00019899,2]
[360258849,1746670242597,-450.0,0.00019899,2]
[360258850,1746670242610,-450.0,0.00019899,2]
[360258851,1746670242622,-516.84774862,0.00019899,2]
[360258852,1746670242634,-490.23585165,0.00019899,2]
[360258853,1746670242646,-450.0,0.00019899,2]
[360258854,1746670242661,-450.0,0.00019899,2]
[360258855,1746670242673,-450.0,0.00019899,2]
[360258856,1746670242686,-450.0,0.00019899,2]
[360258857,1746670242700,-564.62142431,0.00019899,2]
[360258858,1746670242713,-450.0,0.00019899,2]
[360258859,1746670242731,-450.0,0.00019899,2]
[360258860,1746670242744,-450.0,0.00019899,2]
[360258861,1746670242756,-245.15163292,0.00019899,2]
[360258862,1746670242769,-450.0,0.00019899,2]
[360258863,1746670242782,-450.0,0.00019899,2]
[360258864,1746670242795,-450.0,0.00019899,2]
[360258865,1746670242807,-450.0,0.00019899,2]
[360258866,1746670242819,-450.0,0.00019899,2]
[360258867,1746670242831,-450.0,0.00019899,2]
[360258868,1746670242843,-509.64261101,0.00019899,2]
[360258869,1746670242855,-450.0,0.00019899,2]
[360258870,1746670242868,-527.2878725,0.00019899,2]
[360258872,1746670242880,-450.0,0.00019899,2]
[360258873,1746670242892,-450.0,0.00019899,2]
[360258874,1746670242904,-450.0,0.00019899,2]
[360258875,1746670242916,-491.82095945,0.00019899,2]
[360258876,1746670242928,-450.0,0.00019899,2]
[360258877,1746670242940,-450.0,0.00019899,2]
[360258878,1746670242952,-450.0,0.00019899,2]
[360258880,1746670242963,-450.0,0.00019899,2]
[360258882,1746670242975,-483.28680299,0.00019899,2]
[360258884,1746670242987,-450.0,0.00019899,2]
[360258886,1746670242999,-450.0,0.00019899,2]
[360258887,1746670243014,-450.0,0.00019899,2]
[360258888,1746670243026,-450.0,0.00019899,2]
[360258889,1746670243037,-450.0,0.00019899,2]
[360258890,1746670243050,-450.0,0.00019899,2]
[360258891,1746670243062,-450.0,0.00019899,2]
[360258893,1746670243073,-450.0,0.00019899,2]
[360258895,1746670243087,-450.0,0.00019899,2]
[360258897,1746670243099,-585.8074969,0.00019899,2]
[360258899,1746670243110,-463.07004721,0.00019899,2]
[360258902,1746670243123,-450.0,0.00019899,2]
[360258904,1746670243135,-450.0,0.00019899,2]
[360258906,1746670243146,-450.0,0.00019899,2]
[360258908,1746670243163,-450.0,0.00019899,2]
[360258911,1746670243175,-538.34891314,0.00019899,2]
[360258912,1746670243187,-460.70251876,0.00019899,2]
[360258913,1746670243199,-450.0,0.00019899,2]
[360258914,1746670243212,-450.0,0.00019899,2]
[360258915,1746670243225,-450.0,0.00019899,2]
[360258916,1746670243237,-450.0,0.00019899,2]
[360258917,1746670243250,-553.01955028,0.00019899,2]
[360258919,1746670243262,-450.0,0.00019899,2]
[360258920,1746670243275,-450.0,0.00019899,2]
[360258921,1746670243287,-573.37418771,0.00019899,2]
[360258922,1746670243300,-450.0,0.00019899,2]
[360258923,1746670243312,-450.0,0.00019899,2]
[360258924,1746670243324,-450.0,0.00019899,2]
[360258925,1746670243336,-450.0,0.00019899,2]
[360258926,1746670243349,-537.23124236,0.00019899,2]
[360258927,1746670243361,-215.06296061,0.00019899,2]
[360258928,1746670243372,-450.0,0.00019899,2]
[360258929,1746670243383,-450.0,0.00019899,2]
[360258931,1746670243394,-450.0,0.00019899,2]
[360258933,1746670243405,-500.69221957,0.00019899,2]
[360258935,1746670243416,-500.0,0.00019899,2]
[360258936,1746670243428,-450.0,0.00019899,2]
[360258937,1746670243439,-450.0,0.00019899,2]
[360258938,1746670243450,-450.0,0.00019899,2]
[360258939,1746670243462,-450.0,0.00019899,2]
[360258940,1746670243474,-450.0,0.00019899,2]
[360258941,1746670243504,-450.0,0.00019899,2]
[360258942,1746670243515,-450.0,0.00019899,2]
[360258943,1746670243527,-450.0,0.00019899,2]
[360258944,1746670243539,-450.0,0.00019899,2]
[360258945,1746670243550,-500.44850649,0.00019899,2]
[360258946,1746670243563,-450.0,0.00019899,2]
[360258947,1746670243575,-560.16898867,0.00019899,2]
[360258948,1746670243595,-450.0,0.00019899,2]
[360258949,1746670243615,-239.69100031,0.00019899,2]
[360258950,1746670243628,-450.0,0.00019899,2]
[360258951,1746670243642,-450.0,0.00019899,2]
[360258952,1746670243656,-461.8786774,0.00019899,2]
[360258953,1746670243671,-425.0,0.00019899,2]
[360258954,1746670243685,-481.23767263,0.00019899,2]
[360258955,1746670243699,-450.0,0.00019899,2]
[360258956,1746670243712,-450.0,0.00019899,2]
[360258957,1746670243725,-450.0,0.00019899,2]
[360258958,1746670243738,-500.0,0.00019899,2]
[360258959,1746670243751,-476.9188719,0.00019899,2]
[360258960,1746670243763,-497.08163616,0.00019899,2]
[360258961,1746670243774,-276.33589547,0.00019899,2]
[360258962,1746670243784,-469.76158473,0.00019899,2]
[360258963,1746670243793,-499.92242367,0.00019899,2]
[360258964,1746670243803,-450.0,0.00019899,2]
[360258965,1746670243812,-450.0,0.00019899,2]
[360258966,1746670243822,-450.0,0.00019899,2]
[360258967,1746670243832,-215.95800537,0.00019899,2]
[360258968,1746670243841,-450.0,0.00019899,2]
[360258970,1746670243851,-450.0,0.00019899,2]
[360258977,1746670244184,-455.52353977,0.00019899,2]
[360258978,1746670244214,-450.0,0.00019899,2]
[360258979,1746670244225,-450.0,0.00019899,2]
[360258980,1746670244235,-450.0,0.00019899,2]
[360258981,1746670244244,-478.11731482,0.00019899,2]
[360258982,1746670244254,-469.00686972,0.00019899,2]
[360258983,1746670244264,-491.54870027,0.00019899,2]
[360258984,1746670244274,-211.76957548,0.00019899,2]
[360258985,1746670244284,-450.0,0.00019899,2]
[360258986,1746670244294,-450.0,0.00019899,2]
[360258987,1746670244303,-427.98261442,0.00019899,2]
[360258988,1746670244312,-450.0,0.00019899,2]
[360258989,1746670244322,-428.47688154,0.00019899,2]
[360258990,1746670244332,-450.0,0.00019899,2]
[360258991,1746670244341,-497.30748789,0.00019899,2]
[360258992,1746670244351,-450.0,0.00019899,2]
[360258993,1746670244366,-450.0,0.00019899,2]
[360258994,1746670244375,-470.74302488,0.00019899,2]
[360258995,1746670244385,-450.0,0.00019899,2]
[360258996,1746670244395,-450.0,0.00019899,2]
[360258997,1746670244405,-378.87596852,0.00019899,2]
[360258998,1746670244415,-450.0,0.00019899,2]
[360258999,1746670244424,-478.18738761,0.00019899,2]
[360259000,1746670244435,-167.7060811,0.00019899,2]
[360259001,1746670244446,-450.0,0.00019899,2]
[360259002,1746670244456,-450.0,0.00019899,2]
[360259003,1746670244465,-2000.0,0.00019899,2]
[360259004,1746670244475,-450.0,0.00019899,2]
[360259005,1746670244485,-450.0,0.00019899,2]
[360259006,1746670244495,-594.19625377,0.00019899,2]
[360259007,1746670244504,-576.56918927,0.00019899,2]
[360259008,1746670244514,-450.0,0.00019899,2]
[360259009,1746670244525,-476.94601029,0.00019899,2]
[360259010,1746670244535,-450.0,0.00019899,2]
[360259011,1746670244544,-375.50462373,0.00019899,2]
[360259012,1746670244554,-599.760351,0.00019899,2]
[360259013,1746670244563,-450.0,0.00019899,2]
[360259014,1746670244573,-450.0,0.00019899,2]
[360259015,1746670244582,-450.0,0.00019899,2]
[360259016,1746670244592,-474.63321317,0.00019899,2]
[360259017,1746670244602,-465.96047305,0.00019899,2]
[360259018,1746670244611,-500.44722011,0.00019899,2]
[360259019,1746670244621,-164.7986031,0.00019899,2]
[360259020,1746670244631,-469.29618244,0.00019899,2]
[360259021,1746670244641,-511.97735446,0.00019899,2]
[360259022,1746670244651,-450.0,0.00019899,2]
[360259023,1746670244661,-450.0,0.00019899,2]
[360259024,1746670244670,-480.68348991,0.00019899,2]
[360259025,1746670244680,-468.77820668,0.00019899,2]
[360259026,1746670244690,-487.38300921,0.00019899,2]
[360259027,1746670244700,-257.6759649,0.000199,2]
[360259028,1746670244710,-1981.80419513,0.000199,2]
[360259029,1746670244721,-1105.57506668,0.000199,2]
[360259030,1746670244732,-273.10406202,0.000199,2]
[360259031,1746670244741,-450.4224436,0.000199,2]
[360259032,1746670244750,-179.28605362,0.000199,2]
[360259033,1746670244760,-4136.691,0.00019919,2]
[360259034,1746670244770,-5935.0,0.00019919,2]
[360259035,1746670244781,-165.0,0.00019973,2]
[360259036,1746670244790,-500.82801907,0.00019973,2]
[360259037,1746670244804,-500.0,0.00019973,2]
[360259038,1746670244814,-500.0,0.00019973,2]
[360259039,1746670244824,-500.0,0.00019973,2]
[360259040,1746670244834,-500.69159405,0.00019973,2]
[360259041,1746670244843,-500.0,0.00019973,2]
[360259042,1746670244853,-544.56961025,0.00019973,2]
[360259043,1746670244863,-500.0,0.00019973,2]
[360259044,1746670244872,-450.0,0.00019985,2]
[360259045,1746670244883,-3466.0979054,0.00019986,2]
[360259046,1746670244893,-2260.0229187,0.00019986,2]
[360259047,1746670244903,-151.0,0.00019986,2]
[360259048,1746670244913,-155.448872,0.00019986,2]
[360259049,1746670244923,-151.0,0.00019986,2]
[360259050,1746670244933,-151.0,0.00019986,2]
[360259051,1746670244944,-151.0,0.00019986,2]
[360259052,1746670244954,-151.0,0.00019986,2]
[360259053,1746670244965,-151.0,0.00019986,2]
[360259054,1746670244975,-159.115225,0.00019986,2]
[360259055,1746670244984,-154.692243,0.00019986,2]
[360259056,1746670244994,-151.0,0.00019986,2]
[360259057,1746670245005,-151.0,0.00019986,2]
[360259058,1746670245016,-49182.56339823,0.00019986,2]
[360259059,1746670245057,-450.0,0.00019895,2]
[360259060,1746670245068,-450.0,0.00019896,2]
[360259061,1746670245077,-720.35,0.00019898,2]
[360259062,1746670245089,-12711.55390447,0.00019986,2]
[360259063,1746670245099,-151.0,0.00019986,2]
[360259064,1746670245109,-151.0,0.00019986,2]
[360259065,1746670245119,-151.0,0.00019986,2]
[360259066,1746670245129,-450.0,0.00019993,2]
[360259067,1746670245138,-450.0,0.00019993,2]
[360259068,1746670245148,-450.0,0.00019993,2]
[360259069,1746670245157,-894.08,0.00019993,2]
[360259070,1746670245168,-450.0,0.00019993,2]
[360259071,1746670245179,-450.0,0.00019993,2]
[360259072,1746670245188,-450.0,0.00019993,2]
[360259073,1746670245198,-450.0,0.00019993,2]
[360259074,1746670245208,-450.0,0.00019993,2]
[360259075,1746670245218,-463.11,0.00019993,2]
[360259076,1746670245228,-429.63964273,0.00019993,2]
[360259077,1746670245241,-20.36035727,0.00019993,2]
[360259078,1746670245251,-450.0,0.00019993,2]
[360259079,1746670245261,-450.0,0.00019993,2]
[360259080,1746670245271,-600.56,0.00019993,2]
[360259081,1746670245281,-450.0,0.00019993,2]
[360259082,1746670245291,-450.0,0.00019994,2]
[360259083,1746670245301,-450.0,0.00019994,2]
[360259084,1746670245311,-511.36024684,0.00019994,2]
[360259085,1746670245320,-450.0,0.00019994,2]
[360259086,1746670245330,-450.0,0.00019994,2]
[360259087,1746670245340,-465.00262686,0.00019994,2]
[360259088,1746670245350,-584.40721186,0.00019994,2]
[360259089,1746670245360,-450.0,0.00019994,2]
[360259090,1746670245370,-450.0,0.00019994,2]
[360259091,1746670245380,-450.0,0.00019994,2]
[360259092,1746670245390,-479.77558131,0.00019994,2]
[360259093,1746670245399,-450.0,0.00019994,2]
[360259094,1746670245409,-450.0,0.00019994,2]
[360259095,1746670245419,-450.0,0.00019994,2]
[360259096,1746670245428,-450.0,0.00019994,2]
[360259097,1746670245438,-450.0,0.00019994,2]
[360259098,1746670245452,-450.0,0.00019994,2]
[360259099,1746670245462,-450.0,0.00019994,2]
[360259100,1746670245472,-450.0,0.00019994,2]
[360259101,1746670245482,-486.97560484,0.00019994,2]
[360259102,1746670245492,-450.0,0.00019994,2]
[360259103,1746670245501,-450.0,0.00019994,2]
[360259104,1746670245511,-450.0,0.00019994,2]
[360259105,1746670245520,-450.0,0.00019994,2]
[360259106,1746670245530,-450.0,0.00019994,2]
[360259107,1746670245540,-478.18139667,0.00019994,2]
[360259108,1746670245550,-471.2561146,0.00019994,2]
[360259109,1746670245560,-504.785675,0.00019994,2]
[360259110,1746670245573,-450.0,0.00019994,2]
[360259111,1746670245584,-450.0,0.00019994,2]
[360259112,1746670245593,-450.0,0.00019994,2]
[360259113,1746670245603,-478.34636291,0.00019994,2]
[360259114,1746670245613,-450.0,0.00019994,2]
[360259115,1746670245623,-484.79710165,0.00019994,2]
[360259116,1746670245633,-205.70147058,0.00019994,2]
[360259117,1746670245643,-450.0,0.00019994,2]
[360259118,1746670245653,-450.0,0.00019994,2]
[360259119,1746670245662,-450.0,0.00019994,2]
[360259120,1746670245672,-450.0,0.00019994,2]
[360259121,1746670245682,-450.0,0.00019994,2]
[360259122,1746670245692,-450.0,0.00019994,2]
[360259123,1746670245702,-524.35062269,0.00019994,2]
[360259124,1746670245711,-450.0,0.00019994,2]
[360259125,1746670245721,-450.0,0.00019994,2]
[360259126,1746670245730,-450.0,0.00019994,2]
[360259127,1746670245741,-450.0,0.00019994,2]
[360259128,1746670245750,-450.0,0.00019994,2]
[360259129,1746670245759,-450.0,0.00019994,2]
[360259130,1746670245769,-450.0,0.00019994,2]
[360259131,1746670245779,-450.0,0.00019994,2]
[360259132,1746670245789,-450.0,0.00019994,2]
[360259133,1746670245799,-450.0,0.00019994,2]
[360259134,1746670245808,-450.0,0.00019994,2]
[360259135,1746670245818,-450.0,0.00019994,2]
[360259136,1746670245828,-450.0,0.00019994,2]
[360259137,1746670245837,-450.0,0.00019994,2]
[360259138,1746670245847,-450.0,0.00019994,2]
[360259139,1746670245858,-450.0,0.00019994,2]
[360259140,1746670245868,-450.0,0.00019994,2]
[360259141,1746670245878,-450.0,0.00019994,2]
[360259142,1746670245888,-151.0,0.00019994,2]
[360259143,1746670245898,-151.0,0.00019994,2]
[360259144,1746670245908,-151.0,0.00019994,2]
[360259145,1746670245918,-151.0,0.00019994,2]
[360259146,1746670245928,-151.0,0.00019994,2]
[360259147,1746670245938,-235.345439,0.00019994,2]
[360259148,1746670245948,-151.0,0.00019994,2]
[360259149,1746670245957,-151.0,0.00019994,2]
[360259150,1746670245968,-151.0,0.00019994,2]
[360259151,1746670245978,-151.0,0.00019994,2]
[360259152,1746670245988,-450.0,0.00019994,2]
[360259153,1746670245999,-151.0,0.00019994,2]
[360259154,1746670246012,-450.0,0.00019994,2]
[360259155,1746670246021,-450.0,0.00019994,2]
[360259156,1746670246032,-450.0,0.00019994,2]
[360259157,1746670246043,-1514.118208,0.00019994,2]
[360259158,1746670246054,-500.0,0.00019994,2]
[360259159,1746670246063,-1514.118208,0.00019994,2]
[360259160,1746670246073,-450.0,0.00019994,2]
[360259161,1746670246084,-450.0,0.00019994,2]
[360259162,1746670246094,-151.0,0.00019994,2]
[360259163,1746670246104,-450.0,0.00019994,2]
[360259164,1746670246114,-450.0,0.00019994,2]
[360259165,1746670246123,-450.0,0.00019994,2]
[360259166,1746670246133,-151.0,0.00019994,2]
[360259167,1746670246144,-450.0,0.00019994,2]
[360259168,1746670246154,-450.0,0.00019994,2]
[360259169,1746670246164,-450.0,0.00019994,2]
[360259170,1746670246174,-450.0,0.00019994,2]
[360259171,1746670246184,-191.04092937,0.00019994,2]
[360259172,1746670246194,-450.0,0.00019994,2]
[360259173,1746670246204,-450.0,0.00019994,2]
[360259174,1746670246214,-450.0,0.00019994,2]
[360259175,1746670246223,-151.0,0.00019994,2]
[360259176,1746670246234,-353.37986444,0.00019994,2]
[360259177,1746670246243,-450.0,0.00019994,2]
[360259178,1746670246254,-450.0,0.00019994,2]
[360259179,1746670246264,-484.05,0.00019994,2]
[360259180,1746670246273,-450.0,0.00019994,2]
[360259181,1746670246284,-450.0,0.00019995,2]
[360259182,1746670246293,-450.51973498,0.00019995,2]
[360259183,1746670246303,-455.06888152,0.00019995,2]
[360259184,1746670246313,-450.0,0.00019995,2]
[360259185,1746670246323,-500.0,0.00019995,2]
[360259186,1746670246332,-162.14445153,0.00019995,2]
[360259187,1746670246342,-405.82007961,0.00019995,2]
[360259188,1746670246351,-500.0,0.00019995,2]
[360259189,1746670246361,-500.0,0.00019995,2]
[360259190,1746670246371,-500.0,0.00019995,2]
[360259191,1746670246381,-434.90718672,0.00019995,2]
[360259192,1746670246391,-501.91063091,0.00019996,2]
[360259193,1746670246401,-5681.79037872,0.00019996,2]
[360259194,1746670246415,-453.8784,0.00019996,2]
[360259195,1746670246427,-4601.15,0.00019996,2]
[360259196,1746670246438,-933.88324101,0.00019996,2]
[360259197,1746670246448,-494.44228859,0.00019996,2]
[360259198,1746670246459,-928.34,0.00019996,2]
[360259199,1746670246469,-450.0,0.00019996,2]
[360259200,1746670246478,-289.95924116,0.00019996,2]
[360259201,1746670246676,-175.96552422,0.00019996,2]
[360259202,1746670246686,-450.0,0.00019996,2]
[360259203,1746670246696,-450.0,0.00019996,2]
[360259204,1746670246706,-516.91673223,0.00019996,2]
[360259205,1746670246715,-491.92381063,0.00019996,2]
[360259206,1746670246726,-480.44637919,0.00019996,2]
[360259207,1746670246735,-450.0,0.00019996,2]
[360259208,1746670246745,-450.0,0.00019996,2]
[360259209,1746670246756,-482.56179579,0.00019996,2]
[360259210,1746670246765,-450.0,0.00019996,2]
[360259211,1746670246775,-494.99844528,0.00019996,2]
[360259212,1746670246786,-476.52139605,0.00019996,2]
[360259213,1746670246796,-493.68660592,0.00019996,2]
[360259214,1746670246807,-450.0,0.00019996,2]
[360259215,1746670246817,-450.0,0.00019996,2]
[360259216,1746670246827,-450.0,0.00019996,2]
[360259217,1746670246837,-496.47745563,0.00019996,2]
[360259218,1746670246847,-484.34076845,0.00019996,2]
[360259219,1746670246857,-499.49006663,0.00019996,2]
[360259220,1746670246867,-166.07739088,0.00019996,2]
[360259221,1746670246876,-480.28014255,0.00019996,2]
[360259222,1746670246886,-450.0,0.00019996,2]
[360259223,1746670246896,-450.0,0.00019996,2]
[360259224,1746670246905,-450.0,0.00019996,2]
[360259225,1746670246915,-488.44227419,0.00019996,2]
[360259226,1746670246924,-178.57696117,0.00019996,2]
[360259227,1746670246934,-166.35366658,0.00019996,2]
[360259228,1746670246944,-450.0,0.00019996,2]
[360259229,1746670246954,-568.92096785,0.00019996,2]
[360259230,1746670246964,-496.32686264,0.00019996,2]
[360259231,1746670246973,-450.0,0.00019996,2]
[360259232,1746670246983,-450.0,0.00019996,2]
[360259233,1746670246993,-450.0,0.00019996,2]
[360259234,1746670247003,-450.0,0.00019996,2]
[360259235,1746670247016,-486.23835463,0.00019996,2]
[360259236,1746670247027,-450.0,0.00019996,2]
[360259237,1746670247037,-450.0,0.00019996,2]
[360259238,1746670247046,-469.42595878,0.00019996,2]
[360259239,1746670247058,-506.07938152,0.00019996,2]
[360259240,1746670247067,-382.41996,0.00019996,2]
[360259241,1746670247077,-450.0,0.00019996,2]
[360259242,1746670247089,-491.00892754,0.00019996,2]
[360259243,1746670247098,-434.9,0.00019996,2]
[360259244,1746670247107,-10150.02017165,0.00019996,2]
[360259245,1746670247130,-384.21982835,0.00019996,2]
[360259246,1746670247140,-410.0,0.00019996,2]
[360259247,1746670247149,-171.8370561,0.00019996,2]
[360259248,1746670247158,-459.54157256,0.00019996,2]